Cogmind - Beta 16 --- EXPLORER MODE // 2026.01.20 @ 16:54:04 Player: K.K.Y. Result: Destroyed by B-75 Beast with Magnetic Acceleration Cannon Performance ------------- Evolutions (4) 2000 Regions Visited (8) 1600 Robots Destroyed (179) 895 Value Destroyed (7266) 7266 Prototype IDs (28) 560 Alien Tech Used (0) 0 Bonus (2374) 2374 TOTAL SCORE: 14695 Bonus ------- Follower Combat Kills 684 Delivered SUBCON Basin 2000 Friendly Fire -310 Cogmind --------- Core Integrity 0/850 Matter 294/300 Energy 599/600 System Corruption 0% Temperature Cool (1) Movement Hovering (216) Ox3 Location -6/Lower Caves Parts ------- > --- POWER (2) -------- F-cell Engine Cold Fusion Reactor (fused) > --- PROPULSION (4) --- Cooled Airjet Gravmag Array > --- UTILITY (8) ------ Advanced Heat Sink Improved Cooling System High-capacity Storage Unit System Shield Improved System Shield Tech Extrapolator Improved System Restoration Module > --- WEAPON (2) ------- Cooled Plasma Cannon (fused) Cooled Plasma Cannon > --- INVENTORY (20) --- Cold Fusion Reactor Cold Fusion Reactor Cold Fusion Reactor Cold Fusion Reactor Huge Storage Unit Machine Analyzer Advanced Sensor Array Advanced Signal Interpreter Advanced Terrain Scan Processor Advanced ECM Suite Hacking Suite Component Analysis Suite Cobbler Unit Improved Lightning Gun Heavy Ion Cannon Heavy Plasma Cannon Multitool Power Maul Peak State ------------ > --- POWER ------------ F-cell Engine Cold Fusion Reactor > --- PROPULSION ------- Gravmag System Cooled Airjet Gravmag Array > --- UTILITY ---------- Advanced Heat Sink Improved Cooling System High-capacity Storage Unit System Shield System Shield Improved System Shield Tech Extrapolator System Guard > --- WEAPON ----------- Cooled Plasma Cannon Cooled Plasma Cannon > --- INVENTORY -------- Cold Fusion Reactor Cold Fusion Reactor Cold Fusion Reactor Cold Fusion Reactor Huge Storage Unit Machine Analyzer Advanced Sensor Array Advanced Signal Interpreter Advanced Terrain Scan Processor Advanced ECM Suite Hacking Suite Component Analysis Suite Improved System Restoration Module Cobbler Unit Improved Lightning Gun Heavy Ion Cannon Heavy Plasma Cannon Multitool Power Maul [Rating: 83] Favorites ----------- Power Improved Ion Engine Engine Improved Ion Engine Power Core Micro Nuclear Core Reactor Cold Fusion Reactor Propulsion Spiked Treads Treads Spiked Treads Hover Unit Gravmag System Utility High-capacity Storage Unit Device Advanced Heat Sink Storage High-capacity Storage Unit Processor Tech Extrapolator Hackware System Shield Protection Hardened Medium Armor Plating Weapon Advanced Beam Cannon Energy Gun Phase Gun Energy Cannon Advanced Beam Cannon Ballistic Gun Heavy Battle Rifle Ballistic Cannon Antimatter Cannon Build | -11 -10 -10 -10 -8 -6 -6 -6 -6 ------- Run | Yrd Mat Min Sub Rec Fac Was Fac Low Slots Evolved 9 | . 1 . . . 8 . . . Power 1 | . . . . . 1 . . . Propulsion 2 | . . . . . 2 . . . Utility 6 | . 1 . . . 5 . . . Weapon . | . . . . . . . . . Parts Attached 113 | 6 10 1 7 4 15 5 64 1 Power 23 | 1 4 . 2 1 2 . 13 . Engine 17 | 1 4 . 2 1 1 . 8 . Core 2 | . . . . . 1 . 1 . Reactor 4 | . . . . . . . 4 . Propulsion 19 | 2 . . 3 1 2 1 10 . Treads 9 | 2 . . 3 1 2 1 . . Leg . | . . . . . . . . . Wheel . | . . . . . . . . . Hover 10 | . . . . . . . 10 . Flight . | . . . . . . . . . Utility 46 | 2 3 . 2 1 9 2 26 1 Device 29 | 2 2 . 1 1 6 2 14 1 Storage 4 | . 1 . 1 . . . 2 . Processor 5 | . . . . . 1 . 4 . Hackware 5 | . . . . . 1 . 4 . Protection 3 | . . . . . 1 . 2 . Artifact . | . . . . . . . . . Weapon 25 | 1 3 1 . 1 2 2 15 . Energy Gun 5 | 1 . . . . . 1 3 . Energy Cannon 15 | . 3 1 . 1 2 . 8 . Ballistic Gun 2 | . . . . . . 1 1 . Ballistic Cannon 3 | . . . . . . . 3 . Launcher . | . . . . . . . . . Special Weapon . | . . . . . . . . . Impact Weapon . | . . . . . . . . . Slashing Weapon . | . . . . . . . . . Piercing Weapon . | . . . . . . . . . Special Melee Weapon . | . . . . . . . . . Unidentified Prototypes 14 | . 1 . . . 1 . 12 . Parts Lost 37 | . . . 1 1 . 7 28 . Power 6 | . . . . . . . 6 . Propulsion 10 | . . . 1 . . 2 7 . Utility 12 | . . . . . . 3 9 . Weapon 9 | . . . . 1 . 2 6 . Highest Loss Streak 4 | . . . 1 1 . 4 4 . To Critical Strikes 1 | . . . . . . . 1 . Average Backups 11 | . 8 12 7 11 18 8 16 17 Power 1 | . 1 4 1 . 1 1 2 4 Propulsion . | . . . . . . . . . Utility 5 | . 4 6 3 6 8 3 7 8 Weapon 3 | . 2 2 2 3 6 2 4 4 Tool/Special . | . . . . . . . . . Unused Backups 56 | . 1 . 10 2 . 15 11 17 Power 16 | . . . 3 2 . 1 6 4 Propulsion 1 | . . . . . . . 1 . Utility 19 | . . . 4 . . 6 1 8 Weapon 18 | . 1 . 3 . . 7 3 4 Tool/Special 2 | . . . . . . 1 . 1 Average Slot Usage (%) 90 | . 94 100 99 98 84 63 81 86 Engine 9 | . 11 12 12 12 9 8 6 6 Reactor 1 | . . . . . . . 4 6 Treads 14 | . 25 25 24 25 23 7 . . Hover 6 | . . . . . . 6 14 12 Device 20 | . 27 25 25 25 21 12 14 21 Storage 8 | . 8 12 12 12 6 1 5 6 Processor 5 | . . . . . 3 6 12 8 Hackware 3 | . . . . . 3 6 7 12 Energy Cannon 15 | . 20 25 25 23 12 1 5 12 Ballistic Cannon 1 | . . . . . . . 4 . Peak Build Rating 83 | 6 16 16 34 35 69 71 83 80 Average Rating 44 | 5 14 15 29 20 53 41 70 79 On Entrance 31 | . 6 15 16 34 22 69 44 80 Avg Prop Armor Cover (%) 6 | . . . . . . . 6 . Naked Turns . | . . . . . . . . . Heaviest Build 86 | 8 37 37 57 59 80 78 85 86 Greatest Support 100 | 40 40 40 40 42 94 100 52 28 Greatest Overweight (x) 6 | . . . 1 1 1 1 6 3 Average Overweight (x) 1 | . . . . 1 . . 2 3 Largest Inventory Capacity 20 | 5 15 15 20 20 20 20 20 20 Average Capacity 18 | 5 12 15 18 20 20 9 19 20 Most Carried 20 | 5 15 14 20 20 20 20 20 19 Average Carried 16 | 1 8 12 18 13 19 9 17 18 Final Capacity 20 | 5 15 15 20 20 20 5 20 20 Final Carried 20 | 2 10 14 20 20 20 4 19 19 Class Distribution -------------------- 100% | Hacker-Mutant Dominant Class ---------------- Hacker-Mutant | -10/Materials Hacker-Mutant | -10/Mines Hacker-Mutant | -10/Subcaves Hacker-Mutant | -8/Recycling Hacker-Mutant | -6/Factory Hacker-Mutant | -6/Waste Hacker-Mutant | -6/Factory Hacker-Mutant | -6/Lower Caves Resources | -11 -10 -10 -10 -8 -6 -6 -6 -6 ----------- Run | Yrd Mat Min Sub Rec Fac Was Fac Low Matter Collected 3407 | 260 100 63 722 121 169 81 1887 4 Remotely . | . . . . . . . . . Salvage Created 7739 | 129 739 320 899 425 447 . 4780 . Parts 392 | 10 52 11 42 28 20 . 229 . Haulers Intercepted 9 | . 2 . . . . . 7 . Recyclers Shooed 2 | . . . . . . . 2 . Parts Field Recycled . | . . . . . . . . . Retrieved Matter . | . . . . . . . . . Parts Self-Destructed . | . . . . . . . . . Prevented . | . . . . . . . . . Parts Restored 1 | . . . . . . 1 . . Broken 1 | . . . . . . 1 . . Kills | -11 -10 -10 -10 -8 -6 -6 -6 -6 ------- Run | Yrd Mat Min Sub Rec Fac Was Fac Low Combat Hostiles Destroyed 133 | . 13 7 16 6 10 . 81 . Guns 16 | . . . . . . . 16 . Cannons 111 | . 13 6 15 6 10 . 61 . Classes Destroyed 21 | 2 5 . 6 2 2 . 4 . Worker 6 | . . . . . . . 6 . Builder 5 | . 3 . . . . . 2 . Tunneler 3 | 3 . . . . . . . . Hauler 9 | . 2 . . . . . 7 . Recycler 4 | 1 1 . . . . . 2 . Operator 6 | . . . . . . . 6 . Turret 2 | . . . 2 . . . . . Watcher 9 | . 3 . . . . . 6 . Swarmer 20 | . 4 . 1 . 5 . 10 . Grunt 52 | . 9 7 . . 3 . 33 . Brawler 1 | . . . . . . . 1 . Duelist 2 | . . . . . . . 2 . Sentry 14 | . . . 1 3 . . 10 . Hunter 9 | . . . . . 1 . 8 . Programmer 18 | . . . . . 1 . 17 . Artisan 3 | . . . 3 . . . . . Cobbler 1 | . . . 1 . . . . . Subdweller 14 | . . . 14 . . . . . Scientist 2 | . . . . 2 . . . . Scrapper 3 | . . . . 3 . . . . Zionite 2 | . . . 2 . . . . . Best Kill Streak 5 | 3 3 2 4 2 4 . 5 . Combat Bots Only 5 | . 3 2 2 2 4 . 5 . Max Kills in Single Turn 3 | 1 2 1 1 1 1 . 3 . Gunslinging . | . . . . . . . . . Exploded . | . . . . . . . . . Melee . | . . . . . . . . . Uniques/NPCs Destroyed . | . . . . . . . . . Combat | -11 -10 -10 -10 -8 -6 -6 -6 -6 -------- Run | Yrd Mat Min Sub Rec Fac Was Fac Low Hostile Shots Fired 867 | . 35 12 94 15 51 6 638 16 Missed 286 | . 12 . 40 2 18 . 209 5 Hits 581 | . 23 12 54 13 33 6 429 11 Melee 12 | . . . . . . 6 6 . Projectile 569 | . 23 12 54 13 33 . 423 11 Critical Strikes 19 | . . . . . 2 4 12 1 Part Disruptions 1 | . . . . . . . 1 . Damage Taken 6344 | . 173 101 793 216 357 199 4362 143 Core 1016 | . 18 18 80 46 43 97 678 36 Absorbed by Shields . | . . . . . . . . . Redirected to Shielding 18 | . . . . . . . 18 . Ignored by Resistances 3799 | . 114 64 441 126 211 111 2649 83 Regen/Repaired (Parts) 220 | . 93 . . . . 58 69 . Core Remaining (%) 67 | 100 . . . 35 . . . . Volleys Fired 516 | 17 37 13 141 12 21 . 274 1 Largest 2 | 1 2 2 2 2 2 . 2 2 Hottest 180 | 50 136 136 136 136 180 . 178 70 Shots Fired 992 | 17 70 28 285 22 42 . 526 2 Gun 164 | 17 . . . . . . 147 . Cannon 828 | . 70 28 285 22 42 . 379 2 Launcher . | . . . . . . . . . Special . | . . . . . . . . . Kinetic 183 | . . . . . . . 183 . Thermal 737 | 17 70 28 285 22 42 . 271 2 Explosive . | . . . . . . . . . Electromagnetic 72 | . . . . . . . 72 . Robot Hit Streak 63 | 12 30 7 28 35 20 . 63 . Robot Miss Streak 3 | 2 1 1 1 1 2 . 3 . Penetration Max . | . . . . . . . . . Secondary Targets . | . . . . . . . . . Shots Hit Robots 651 | 15 47 21 127 18 33 . 390 . Core Hits 266 | 4 24 9 40 11 15 . 163 . Critical Kills 4 | . . 1 1 . . . 2 . Critical Parts Destroyed . | . . . . . . . . . Critical Strikes 22 | 4 . 1 1 . . . 16 . Burn 7 | 4 . . . . . . 3 . Meltdown 4 | . . 1 1 . . . 2 . Blast 10 | . . . . . . . 10 . Corrupt 1 | . . . . . . . 1 . Melee Attacks . | . . . . . . . . . Impact . | . . . . . . . . . Slashing . | . . . . . . . . . Piercing . | . . . . . . . . . Sneak Attacks . | . . . . . . . . . Combat Hostiles . | . . . . . . . . . Follow-up Attacks . | . . . . . . . . . Damage Inflicted 18202 | 188 1009 430 2492 370 985 . 12728 . Guns 3082 | 188 . . . . . . 2894 . Cannons 14492 | . 1009 430 2492 370 985 . 9206 . Explosions 628 | . . . . . . . 628 . Melee . | . . . . . . . . . Ramming . | . . . . . . . . . Kinetic 4119 | . . . . . . . 4119 . Thermal 12441 | 188 1009 430 2492 370 985 . 6967 . Explosive 309 | . . . . . . . 309 . Electromagnetic 1333 | . . . . . . . 1333 . Impact . | . . . . . . . . . Slashing . | . . . . . . . . . Piercing . | . . . . . . . . . Highest Corruption 12 | . 1 1 1 1 2 2 12 . Average Corruption 2 | . 1 1 1 1 1 2 5 . Corruption Purged 14 | . . . . . . . 14 . Corruption Blocked . | . . . . . . . . . Effects 250 | . 1 16 71 16 5 8 133 . Message Errors 52 | . . 6 14 2 3 5 22 . Matter Fused 58 | . . 6 15 3 . 2 32 . Heat Flow Errors 37 | . . 1 11 3 1 . 21 . Energy Discharges 31 | . . . 9 1 . 1 20 . Parts Rejected 1 | . . . . . . . 1 . Parts Fused 6 | . . . 2 . . . 4 . Data Loss (minor) 35 | . 1 . 11 4 1 . 18 . Data Loss (major) 7 | . . 1 2 1 . . 3 . Misfires 17 | . . 2 4 1 . . 10 . Alerts 5 | . . . 2 1 . . 2 . Weapon Failures 1 | . . . 1 . . . . . Overload Shots . | . . . . . . . . . Overflow Damage 595 | . 1 1 . . 11 . 582 . Projectiles 316 | . 1 1 . . 11 . 303 . Explosions 279 | . . . . . . . 279 . Melee . | . . . . . . . . . Knockbacks 18 | . . . . . . . 18 . Impact . | . . . . . . . . . Kinetic 18 | . . . . . . . 18 . Secondary . | . . . . . . . . . Self-Inflicted Damage 253 | . . . . . . . 253 . Shots 5 | . . . . . . . 5 . Rammed . | . . . . . . . . . Targets Rammed . | . . . . . . . . . Kicked . | . . . . . . . . . Crushed . | . . . . . . . . . Highest Temperature 626 | 50 225 453 342 231 626 . 465 . Average Temperature 107 | 19 56 133 87 84 284 . 130 . Received Heat Transfer 2322 | . 81 93 270 138 90 . 1650 . Effects 25 | . . 3 5 . 13 . 4 . Shutdowns 4 | . . 1 . . 1 . 2 . Energy Bleed 7 | . . . 3 . 2 . 2 . Interference 6 | . . . 1 . 5 . . . Matter Decay 1 | . . . 1 . . . . . Short Circuit 1 | . . 1 . . . . . . Damage (minor) 2 | . . 1 . . 1 . . . Damage (major) 4 | . . . . . 4 . . . Siege Activations . | . . . . . . . . . Martial Activations . | . . . . . . . . . Shielding Activations . | . . . . . . . . . Robots Disrupted 1 | . . . . . . . 1 . Combat Hostiles 1 | . . . . . . . 1 . Robots Corrupted 1 | . . . . . . . 1 . Combat Hostiles 1 | . . . . . . . 1 . Parts Fried 5 | . . . . . . . 5 . Impact Corruptions . | . . . . . . . . . Robots Melted 6 | 1 . 1 1 . . . 3 . Combat Hostiles 5 | . . 1 1 . . . 3 . Parts Melted 44 | . 7 3 10 1 3 . 20 . Heat Transferred 19872 | 851 1813 777 4514 570 1332 . 10015 . Parts Sabotaged . | . . . . . . . . . Parts Stolen . | . . . . . . . . . Parts Stripped . | . . . . . . . . . Power Chain Reactions . | . . . . . . . . . Alert | -11 -10 -10 -10 -8 -6 -6 -6 -6 ------- Run | Yrd Mat Min Sub Rec Fac Was Fac Low Maximum Alert Level 1 | . . . . . . . 1 . Low Security (%) 99 | 100 100 100 . 100 100 100 99 . Level 1 . | . . . . . . . . . Level 2 . | . . . . . . . . . Level 3 . | . . . . . . . . . Level 4 . | . . . . . . . . . Level 5 . | . . . . . . . . . High Security . | . . . . . . . . . Max Security . | . . . . . . . . . Peak Influence 238 | 5 98 54 . 20 100 16 238 . Initial 50 | . . 1 . . 50 16 . . Average 13 | . 11 5 . . 21 . 18 . Influence Increases 4791 | 20 451 205 150 66 318 20 3561 . Destroy 0b10 Robot/C 2680 | . 260 160 120 60 200 . 1880 . Destroy 0b10 Robot/NC 230 | 20 45 . . . . . 165 . Destroy Leader 758 | . 80 40 . . 50 . 588 . Allied During Kill 104 | . . 1 . . . . 103 . Successful Hack 220 | . 35 . . 5 . . 180 . Disable Machine 204 | . 16 4 . . . . 184 . Destroy Structure 275 | . . . . 1 3 20 251 . Advance Influence 50 | . . . . . 50 . . . Partial Spotted 15 | . . . . . . . 15 . Lose Combat Pursuer 255 | . 15 . 30 . 15 . 195 . Influence Decreases 4791 | 20 446 210 150 66 248 90 3561 . Entered New Map 58 | . . 4 . . . 54 . . Time Decay 4413 | 20 446 206 150 66 248 25 3252 . Lost Part 155 | . . . . . . 1 154 . Lost Ally 165 | . . . . . . 10 155 . Squads Dispatched 44 | . 3 . . . 3 . 38 . Investigation 12 | . 3 . . . 1 . 8 . Extermination 19 | . . . . . 1 . 18 . Reinforcement 9 | . . . . . 1 . 8 . Assault . | . . . . . . . . . Garrison 4 | . . . . . . . 4 . Intercept . | . . . . . . . . . Searches Triggered . | . . . . . . . . . Construction Impeded 2 | . . . . . . . 2 . Haulers Reinforced 2 | . . . . . . . 2 . Active Scanning Responses . | . . . . . . . . . Cargo Convoy Interrupts . | . . . . . . . . . Stealth | -11 -10 -10 -10 -8 -6 -6 -6 -6 --------- Run | Yrd Mat Min Sub Rec Fac Was Fac Low Distress Signals 4 | . 2 . . . . . 2 . Communications Jammed . | . . . . . . . . . Distress Signals . | . . . . . . . . . Times Spotted 188 | . 19 6 22 5 13 6 116 1 Peak Tracking Total 6 | . 3 2 4 3 4 6 5 1 Tactical Retreats 16 | . 3 . 1 . 1 . 11 . ECM-based Alert Blocks 2 | . 2 . . . . . . . Traps | -11 -10 -10 -10 -8 -6 -6 -6 -6 ------- Run | Yrd Mat Min Sub Rec Fac Was Fac Low Traps Triggered 13 | . 2 . 1 . 1 . 9 . Indirectly . | . . . . . . . . . Trap Hack Attempts . | . . . . . . . . . Triggered . | . . . . . . . . . Disarmed 12 | . . . . . . . 12 . Reprogrammed . | . . . . . . . . . Reused . | . . . . . . . . . Traps Extracted . | . . . . . . . . . Installed . | . . . . . . . . . Triggered . | . . . . . . . . . Machines | -11 -10 -10 -10 -8 -6 -6 -6 -6 ---------- Run | Yrd Mat Min Sub Rec Fac Was Fac Low Machines Disabled 52 | . 4 1 1 . . . 46 . Max in Single Turn 14 | . 1 1 1 . . . 14 . Garrison Access 3 | . . . . . . . 3 . Machines Repaired . | . . . . . . . . . Machines Dismantled . | . . . . . . . . . Machines Sabotaged . | . . . . . . . . . Overloaded Fab Kills . | . . . . . . . . . Hacking | -11 -10 -10 -10 -8 -6 -6 -6 -6 --------- Run | Yrd Mat Min Sub Rec Fac Was Fac Low Machines Accessed 51 | . 8 . 3 12 2 . 26 . Terminals 25 | . 5 . . 6 1 . 13 . Fabricators 5 | . . . . . . . 5 . Repair Stations 1 | . 1 . . . . . . . Recycling Units 10 | . 2 . . 6 1 . 1 . Scanalyzers 4 | . . . . . . . 4 . Garrison Access 3 | . . . . . . . 3 . Total Hacks 151 | . 39 . 4 24 4 . 80 . Successful 95 | . 24 . 4 22 1 . 44 . Failed 56 | . 15 . . 2 3 . 36 . Catastrophic 6 | . 1 . . . 1 . 4 . Database Lockouts . | . . . . . . . . . Manual 35 | . 22 . . 13 . . . . Terminals 77 | . 24 . . 10 2 . 41 . Fabricators 17 | . . . . . . . 17 . Repair Stations 10 | . 10 . . . . . . . Recycling Units 22 | . 5 . . 14 2 . 1 . Scanalyzers 15 | . . . . . . . 15 . Garrison Access 6 | . . . . . . . 6 . Terminal Hacks 40 | . 13 . 4 3 . . 20 . Record 7 | . . . 1 . . . 6 . Part Schematic 19 | . 11 . . 3 . . 5 . Robot Schematic 4 | . . . . . . . 4 . Robot Analysis 3 | . 1 . . . . . 2 . Open Door 1 | . . . 1 . . . . . Locate Traps 1 | . 1 . . . . . . . Disarm Traps 2 | . . . . . . . 2 . Registered Components 1 | . . . . . . . 1 . Proto ID Catalog 1 | . . . 1 . . . . . Release Object 1 | . . . 1 . . . . . Fabricator Hacks 13 | . . . . . . . 13 . Load Schematic 6 | . . . . . . . 6 . Build 7 | . . . . . . . 7 . Repair Station Hacks 9 | . 9 . . . . . . . Scan Component 5 | . 5 . . . . . . . Repair 4 | . 4 . . . . . . . Recycling Unit Hacks 11 | . 2 . . 7 1 . 1 . Retrieve Components 11 | . 2 . . 7 1 . 1 . Scanalyzer 7 | . . . . . . . 7 . Insert Component 4 | . . . . . . . 4 . Analyze 3 | . . . . . . . 3 . Garrison Access Hacks 3 | . . . . . . . 3 . Seal Access 3 | . . . . . . . 3 . Unauthorized Hacks 12 | . . . . 12 . . . . Terminals 6 | . . . . 6 . . . . Botnet 6 | . . . . 6 . . . . Fabricators . | . . . . . . . . . Repair Stations . | . . . . . . . . . Recycling Units 6 | . . . . 6 . . . . Reject 6 | . . . . 6 . . . . Scanalyzers . | . . . . . . . . . Garrison Access . | . . . . . . . . . Data Cores Recovered 2 | . . . . . . . 2 . Used 2 | . . . . . . . 2 . Hacking Detections 32 | . 5 . . 4 1 . 22 . Full Trace Events 13 | . 4 . . 1 1 . 7 . Feedback Events 2 | . 1 . . . 1 . . . Corruption 2 | . 1 . . . 1 . . . Feedback Blocked . | . . . . . . . . . Robot Schematics Acquired 4 | . . . . . . . 4 . Robots Built 1 | . . . . . . . 1 . Authchips . | . . . . . . . . . Time 58 | . . . . . . . 58 . Total Robot Build Rating 3 | . . . . . . . 3 . Part Schematics Acquired 48 | . 11 . . 3 2 5 27 . Parts Built 6 | . . . . . . . 6 . Authchips . | . . . . . . . . . Time 436 | . . . . . . . 436 . Total Part Build Rating 23 | . . . . . . . 23 . Part Studies Acquired . | . . . . . . . . . Parts Repaired 4 | . 4 . . . . . . . Time 166 | . 166 . . . . . . . Parts Recycled . | . . . . . . . . . Recycled Matter . | . . . . . . . . . Retrieved Matter . | . . . . . . . . . Retrieved Components 36 | . 18 . . 8 . . 10 . Parts Scanalyzed 3 | . . . . . . . 3 . Part Schematics Acquired 2 | . . . . . . . 2 . Parts Damaged 1 | . . . . . . . 1 . Bothacking | -11 -10 -10 -10 -8 -6 -6 -6 -6 ------------ Run | Yrd Mat Min Sub Rec Fac Was Fac Low Used RIF Installer . | . . . . . . . . . Robots Hacked . | . . . . . . . . . Non-combat . | . . . . . . . . . Combat . | . . . . . . . . . Robot Hacks Applied . | . . . . . . . . . Relay Couplers Released . | . . . . . . . . . Fabnet Peak Effective % . | . . . . . . . . . Robots Rewired . | . . . . . . . . . Allies Hacked 1 | . . . . . . . 1 . Hacks Repelled . | . . . . . . . . . Allies | -11 -10 -10 -10 -8 -6 -6 -6 -6 -------- Run | Yrd Mat Min Sub Rec Fac Was Fac Low Total Allies 22 | . . 2 . . . 19 1 . Largest Group 19 | . . 2 1 . . 19 12 . Highest-Rated Group 684 | . . 46 31 . . 684 480 . Highest-Rated Ally 50 | . . 31 31 . . 50 50 . Total Orders . | . . . . . . . . . Ally Attacks 200 | . . 2 8 . . 96 94 . Total Damage 7884 | . . 42 145 . . 5021 2676 . Kills 33 | . . 2 3 . . 11 17 . Allies Corrupted 4 | . . . . . . . 4 . Allies Melted . | . . . . . . . . . Intel | -11 -10 -10 -10 -8 -6 -6 -6 -6 ------- Run | Yrd Mat Min Sub Rec Fac Was Fac Low Active Infowar (turns) 16946 | 124 1799 1154 7838 2411 606 216 2750 48 Sensors 14142 | . 185 1154 7838 2407 606 166 1738 48 Structural 14713 | 124 1799 1154 7817 2411 396 . 1012 . Machine Analysis 908 | . . . . . . . 908 . Cloaking 592 | . . . . . 376 216 . . Jamming 104 | . . . . . 104 . . . ECM 440 | 122 318 . . . . . . . Robot Analysis Total 3 | . 1 . . . . . 2 . Derelict Logs Recovered 3 | . . 1 2 . . . . . Drone Launches . | . . . . . . . . . Drone Recoveries . | . . . . . . . . . Exploration | -11 -10 -10 -10 -8 -6 -6 -6 -6 ------------- Run | Yrd Mat Min Sub Rec Fac Was Fac Low Turns Passed 25016 | 144 1799 1154 7838 2411 606 581 10388 95 Spaces Moved 10927 | 77 787 668 2973 929 276 365 4828 24 Core 108 | 23 . . . . . 85 . . Treads 5790 | 54 787 668 2973 929 276 103 . . Legs . | . . . . . . . . . Wheels . | . . . . . . . . . Hover 5029 | . . . . . . 177 4828 24 Flight . | . . . . . . . . . Fastest Speed 50 | 50 160 160 160 242 150 50 56 216 Average Speed 195 | 127 160 160 230 242 158 116 185 216 Slowest Speed 500 | 160 160 160 260 260 242 232 500 216 Overloaded Moves . | . . . . . . . . . Propulsion Burnouts . | . . . . . . . . . Robots Hopped . | . . . . . . . . . Potential Cave-ins 1 | . . . 1 . . . . . Cave-ins Triggered . | . . . . . . . . . Exploration Rate (%) 65 | 4 99 98 95 99 10 86 94 6 Regions Visited 8 Branch Regions 4 Pre-discovered Areas 3 | . . 1 2 . . . . . Known Exits Taken 6 | 1 1 1 1 1 . . 1 . Unknown Exits Taken . | . . . . . . . . . Scrap Searched 12 | . . . 12 . . . . . Spaces Dug 47 | . . . 21 . . . 26 . Terrain Destroyed 237 | . . . 21 . 3 . 213 . Melee . | . . . . . . . . . Projectile 92 | . . . 21 . 3 . 68 . AOE 145 | . . . . . . . 145 . Terrain Rammed . | . . . . . . . . . Walls Destroyed . | . . . . . . . . . Machines Disabled . | . . . . . . . . . Actions | -11 -10 -10 -10 -8 -6 -6 -6 -6 --------- Run | Yrd Mat Min Sub Rec Fac Was Fac Low Total 13613 | 106 1258 726 3689 1078 403 519 5767 67 Wait 1775 | . 397 40 528 96 77 141 457 39 Move 10920 | 76 786 667 2972 928 276 364 4827 24 Hop . | . . . . . . . . . Pick Up 138 | 7 20 4 14 20 5 1 66 1 Fast Attach 35 | 1 . . 1 . 10 5 18 . Attach 59 | 5 7 . . 3 5 1 37 1 Detach 18 | . 1 . . 2 2 . 12 1 Swap 38 | . 4 2 8 6 1 4 13 . Drop 93 | . 6 . 25 10 6 3 43 . Fire 516 | 17 37 13 141 12 21 . 274 1 Melee . | . . . . . . . . . Ram . | . . . . . . . . . Kick . | . . . . . . . . . Crush . | . . . . . . . . . Escape Stasis 13 | . . . . . . . 13 . Rewire 7 | . . . . . . . 7 . Trap . | . . . . . . . . . Miscellaneous 1 | . . . . 1 . . . . Route ------- -11/Scrapyard -10/Materials (discovered 5 exits: *Mat x3 / *Min / *Sub) -10/Mines (discovered 4 exits: *Mat x2 / *Exi / *Sub) -10/Subcaves (discovered 3 exits: *Mat x2 / *Rec) -8/Recycling -6/Factory -6/Waste -6/Factory (discovered 6 exits: *Fac x4 / *Low x2) -6/Lower Caves History --------- Turn | Location | Event 8 | -11/Scrapyard | Identified exit to Materials 8 | -11/Scrapyard | Discovered exit to Materials (range 15) 145 | -11/Scrapyard | Entered Materials 145 | -10/Materials | Evolved 1 slot: Utility x1 296 | -10/Materials | Identified exit to Materials 296 | -10/Materials | Discovered exit to Materials (range 3) 300 | -10/Materials | Build established: Hacker-Mutant 584 | -10/Materials | Identified exit to Subcaves 584 | -10/Materials | Discovered exit to Subcaves (range 8) 588 | -10/Materials | Identified exit to Mines 588 | -10/Materials | Discovered exit to Mines (range 11) 890 | -10/Materials | Discovered exit to Materials (range 5) 1560 | -10/Materials | Discovered exit to Materials (range 9) 1638 | -10/Materials | Repaired Adv. Beam Cannon 1690 | -10/Materials | Repaired Adv. Beam Cannon 1729 | -10/Materials | Repaired Imp. Heat Sink 1756 | -10/Materials | Repaired Ion Engine 1944 | -10/Materials | Entered Mines 2165 | -10/Mines | Discovered exit to Materials (range 8) 2265 | -10/Mines | Deemed a non-threat by the Exiles lab entrance 2265 | -10/Mines | Identified exit to Exiles 2265 | -10/Mines | Discovered exit to Exiles (range 5) 2356 | -10/Mines | Discovered exit to Subcaves (range 11) 2679 | -10/Mines | Learned location of Zion (-6) 2757 | -10/Mines | Discovered exit to Materials (range 7) 3098 | -10/Mines | Entered Subcaves 3098 | -10/Subcaves | Accompanied by 1 ally 3103 | -10/Subcaves | Led the pair of lost Derelicts to an unsafe place 3106 | -10/Subcaves | Ambushed by Subdwellers from Twisted Machinery 3139 | -10/Subcaves | Identified exit to Recycling 3139 | -10/Subcaves | Discovered exit to Recycling (range 15) 3672 | -10/Subcaves | Identified exit to Materials 3672 | -10/Subcaves | Discovered exit to Materials (range 13) 3683 | -10/Subcaves | Shifting Twisted Machinery released Spk. Treads 3703 | -10/Subcaves | Shifting Twisted Machinery released Sub. Power Source 3769 | -10/Subcaves | Visited 4L-MR0's lab 3961 | -10/Subcaves | Learned Materials non-interactive machine intel 4097 | -10/Subcaves | Shifting Twisted Machinery released Sub. Shrapnel Launcher 4113 | -10/Subcaves | Disturbed a concealed Subdweller 4155 | -10/Subcaves | Shifting Twisted Machinery released Slug Cannon 4466 | -10/Subcaves | Discovered exit to Materials (range 9) 4944 | -10/Subcaves | Found SUBCON Basin 5026 | -10/Subcaves | A swath of the cavern ceiling suddenly collapsed 5267 | -10/Subcaves | Met a Zionite searching for "candidates" 6909 | -10/Subcaves | A swath of the cavern ceiling suddenly collapsed 7311 | -10/Subcaves | Ambushed by Subdweller buried in earth 8840 | -10/Subcaves | Ambushed by angry Subdweller bent on revenge 10936 | -10/Subcaves | Entered Recycling 11007 | -8/Recycling | Scanned before Scraplab entrance 11036 | -8/Recycling | Identified exit to Scraptown 11036 | -8/Recycling | Discovered exit to Scraptown (range 11) 11043 | -8/Recycling | Entered Scraplab 11102 | -8/Recycling | Angered Scraplab inhabitants 11104 | -8/Recycling | Core integrity fell below 50% 11994 | -8/Recycling | Identified exit to Factory 11994 | -8/Recycling | Discovered exit to Factory (range 5) 12764 | -8/Recycling | Released subatomizers from SUBCON Basin 13347 | -8/Recycling | Entered Factory 13347 | -6/Factory | Evolved 8 slots: Power x1, Propulsion x2, Utility x5 13738 | -6/Factory | Tech Extrapolator generated special schematic: Deep Structural Scanner 13953 | -6/Factory | Sucked down chute 13953 | -6/Factory | Entered Waste 13963 | -6/Waste | Spotted C-40 Crusher 13981 | -6/Waste | Crushed by Compactor (1 part destroyed, 2 dropped) 13984 | -6/Waste | Spotted C-40 Crusher 14027 | -6/Waste | Crushed by Compactor (1 part destroyed, 1 dropped) 14085 | -6/Waste | Spotted C-40 Crusher 14104 | -6/Waste | Spotted C-40 Crusher 14111 | -6/Waste | Crushed by Compactor (1 part destroyed, 2 dropped) 14117 | -6/Waste | Crushed by Compactor (1 part destroyed, 1 dropped) 14117 | -6/Waste | Spotted C-40 Crusher 14119 | -6/Waste | Crushed by Compactor (1 part destroyed, 2 dropped) 14122 | -6/Waste | Crushed by Compactor (1 part destroyed, 2 dropped) 14129 | -6/Waste | Spotted C-40 Crusher 14153 | -6/Waste | Lost 4 parts (2n2u) 14158 | -6/Waste | Warlord forces began an assault 14171 | -6/Waste | Allies destroyed C-40 Crusher 14189 | -6/Waste | Allies destroyed C-40 Crusher 14194 | -6/Waste | Allies destroyed C-40 Crusher 14195 | -6/Waste | Allies destroyed C-40 Crusher 14199 | -6/Waste | Allies destroyed C-40 Crusher 14201 | -6/Waste | Allies destroyed C-40 Crusher 14229 | -6/Waste | Lost 7 allies 14342 | -6/Waste | Identified exit to Factory 14342 | -6/Waste | Discovered exit to Factory (range 12) 14534 | -6/Waste | Entered Factory 14534 | -6/Factory | Accompanied by 12 allies 14587 | -6/Factory | Tech Extrapolator generated special schematic: Machine Rigger 14636 | -6/Factory | Garrison activated, responded to threat 14726 | -6/Factory | Fabricated Lrg. Storage Unit (x1) 14837 | -6/Factory | Fabricated Deep Structural Scanner (x1) 14977 | -6/Factory | Spotted B-75 Beast 15005 | -6/Factory | Allies destroyed B-75 Beast 15033 | -6/Factory | Lost 4 allies 15312 | -6/Factory | Identified exit to Lower Caves 15312 | -6/Factory | Discovered exit to Lower Caves (range 10) 15499 | -6/Factory | Fabricated Mak. Power Source (x2) 16082 | -6/Factory | Identified exit to Factory 16082 | -6/Factory | Discovered exit to Factory (range 19) 16173 | -6/Factory | Lost 4 parts (1p3u) 16287 | -6/Factory | Discovered exit to Lower Caves (range 11) 18027 | -6/Factory | System corruption reached 10% 18355 | -6/Factory | Garrison activated, responded to threat 19143 | -6/Factory | Lost 3 parts (1n1u1w) 19331 | -6/Factory | Tech Extrapolator generated special schematic: Energy Deflector 19384 | -6/Factory | Core integrity fell below 50% 19392 | -6/Factory | Fabricated O-24 Administrator (x1) 19444 | -6/Factory | Lost 4 parts (2p2u) 20098 | -6/Factory | Discovered exit to Factory (range 16) 21151 | -6/Factory | Discovered exit to Factory (range 10) 21411 | -6/Factory | Core integrity fell below 20% 22263 | -6/Factory | Lost 3 parts (2n1w) 22351 | -6/Factory | Discovered exit to Factory (range 15) 24355 | -6/Factory | Fabricated Imp. System Restoration Module? 24922 | -6/Factory | Entered Lower Caves 24991 | -6/Lower Caves | Spotted B-75 Beast 25017 | -6/Lower Caves | Destroyed by B-75 Beast with Magnetic Acceleration Cannon Last Messages --------------- system corruption (4%). 24603_ Imp. System Restoration Module purges 1% system corruption (3%). 24605_ Imp. System Restoration Module purges 1% system corruption (2%). 24623_ Imp. System Restoration Module purges 1% system corruption (1%). 24655_ Imp. System Restoration Module purges 1% system corruption (0%). 24662_ Acquired 10 matter. 24725_ K-01 Serf cleans the Construction Platform. 24782_ K-01 Serf cleans the Neutrino Reactor. 24872_ K-01 Serf cleans the Terminal. LOCATION=LOWER CAVES GOAL=ESCAPE 24957_ Discarded System Guard. 24995_ Acquired 4 matter. 25005_ Adv. Sensor Array blasted off. 25006_ Acquired Adv. Sensor Array. Map ----- +----------------------------------------------------+ | ?????????????????????????????????????????????????? | | ?????????????????????????????????????????????????? | | ?????????????????????????????????????????????????? | | ?????????????????????????????????????????????????? | | ?????????????????????????????????????????????????? | | ?????????????????????????????????????????????????? | | ?????????????????????????????????????????????????? | | ?????????????????????????????????????????????????? | | ?????????????????????????????????????????????????? | | ???????????????????????????????????????? ????????? | | ???????????????????????????????????????# ????????? | | ??????????????????????????????????????? #???? ???? | | ?????????????????????????????????????? #???? ??? | | ?????????????????????????????????????? #??? ???? | | ?????????????????????????????????????? #?? ""?? | | ?????????????????????????????????????? #? """" ? | | ??????????????????????????????????#### ## " ? | | ?????????????##?????????????####### ?? | | ???????????### ????????????# ?? ??? | | ??????????## ???????????# ??? ????? | | ???????? ## ???????#### #???# #??????? | | ??????? #######;## ##### #### | | ??????? # | | ??????? # | | ???????? ;; % #### ### #? | | ?????????? ;; @ %% ##??## ##?????????? | | ??????????????## % ;#?????##??????????? | | ???????????????## ## % ##?????????????????? | | ????????????????### #?## #####??????????????????? | | ??????????????????###???###??????????????????????? | | ?????????????????????????????????????????????????? | | ?????????????????????????????????????????????????? | | ?????????????????????????????????????????????????? | | ?????????????????????????????????????????????????? | | ?????????????????????????????????????????????????? | | ?????????????????????????????????????????????????? | | ?????????????????????????????????????????????????? | | ?????????????????????????????????????????????????? | | ?????????????????????????????????????????????????? | | ?????????????????????????????????????????????????? | | ?????????????????????????????????????????????????? | | ?????????????????????????????????????????????????? | | ?????????????????????????????????????????????????? | | ?????????????????????????????????????????????????? | | ?????????????????????????????????????????????????? | | ?????????????????????????????????????????????????? | | | | | | | | | +----------------------------------------------------+ Best States ------------- Heat Dissipation 102 Energy Generation 31 Energy Capacity 600 Matter Stores 300 Matter Capacity 300 Sight Range 16 Robot Scan Range 16 Terrain Scan Density 10 ECM Strength 1 Jamming Range 12 Cloak Strength 2 Additional Mass Support 12 Base Temperature (-) 150 Corruption Containment 16 Armor Coverage 225 Resistance: KI 35 Resistance: TH 35 Resistance: EX 35 Resistance: EM 35 Resistance: I 35 Resistance: S 35 Resistance: P 35 Propulsion Shielding 66 Evasion (%) 53 Recoil Reduction 4 Offensive Hacking 31 Defensive Hacking 32 Authchip Count 1 Item Schematics ----------------- Huge Storage Unit | -10/Materials | Hacked Cargo Storage Unit | -10/Materials | Hacked Sml. Storage Unit | -10/Materials | Hacked Med. Storage Unit | -10/Materials | Hacked Lrg. Storage Unit | -10/Materials | Hacked Hcp. Storage Unit | -10/Materials | Hacked Structural Scanner | -10/Materials | Hacked Transport Network Coupler | -10/Materials | Hacked Sensor Array | -10/Materials | Hacked Mining Laser | -10/Materials | Hacked Lgt. Treads | -10/Materials | Hacked Cloaking Device | -8/Recycling | Hacked Imp. Signal Interpreter | -8/Recycling | Hacked Hardlight Generator | -8/Recycling | Hacked 0b10 Decoder Chip [Skirmisher] | -6/Factory | Extrapolated Deep Structural Scanner | -6/Factory | Extrapolated Beamcaster | -6/Waste | Extrapolated Mak. Power Source | -6/Waste | Extrapolated Mak. Coolant Network | -6/Waste | Extrapolated Mak. Medium Armor Plating | -6/Waste | Extrapolated Mak. Ablative Armor | -6/Waste | Extrapolated Machine Rigger | -6/Factory | Extrapolated Mak. Laser | -6/Factory | Extrapolated 0b10 Decoder Chip [Generic] | -6/Factory | Extrapolated Mak. Hover Unit | -6/Factory | Extrapolated Field Propulsion Array | -6/Factory | Hacked 0b10 Decoder Chip [Scout] | -6/Factory | Extrapolated Mak. ECM Suite | -6/Factory | Extrapolated Mak. Spear | -6/Factory | Extrapolated Lance | -6/Factory | Hacked Gravmag Array | -6/Factory | Hacked Mak. Sensor Array | -6/Factory | Extrapolated Mak. Core Shielding | -6/Factory | Extrapolated Mak. Terrain Scan Processor | -6/Factory | Extrapolated Mak. Light Armor Plating | -6/Factory | Extrapolated Tactical Coordination Suite | -6/Factory | Extrapolated Multitool | -6/Factory | Extrapolated Railgun | -6/Factory | Hacked Energy Deflector | -6/Factory | Extrapolated System Shield | -6/Factory | Scanalyzed Adv. Shield Generator | -6/Factory | Hacked Mak. Targeting Computer | -6/Factory | Extrapolated Bore Cannon | -6/Factory | Extrapolated Mak. System Shield | -6/Factory | Extrapolated Mak. System Restoration Module | -6/Factory | Extrapolated Mak. Shrapnel Gun | -6/Factory | Extrapolated Mak. Thermal Plating | -6/Factory | Extrapolated Imp. System Restoration Module | -6/Factory | Scanalyzed Robot Schematics ------------------ G-50 Soldier | -6/Factory | Hacked O-24 Administrator | -6/Factory | Hacked K-01 Serf | -6/Factory | Hacked P-60 Hacker | -6/Factory | Hacked Fabricated ------------ Lrg. Storage Unit | x1 | -6/Factory Deep Structural Scanner | x1 | -6/Factory Mak. Power Source | x2 | -6/Factory O-24 Administrator | x1 | -6/Factory Imp. System Restoration Module | x2 | -6/Factory Repaired ---------- Adv. Beam Cannon | 70% | -10/Materials Adv. Beam Cannon | 85% | -10/Materials Imp. Heat Sink | 80% | -10/Materials Ion Engine | 53% | -10/Materials Studied --------- None Alien Tech Used ----------------- None Achievements -------------- None Challenges ------------ None Game ------ Seed ServoScanSink Manual? 0 Play Time 01:34:20 Cumulative 297.0 hours Start 2026.01.20 @ 15:20:14 End 2026.01.20 @ 16:54:04 Sessions 1 Manual Loads 0 Difficulty Explorer Special Mode None Game No. 459 Rogue 0 Adventurer 0 Explorer 459 Win Type - Total 0 Types 0/0/0/0/0/0/0/0/0/0 Lore% 76 Gallery% 70 Achievement% 55 Wizard Run 0 Options --------- Layout 1 ASCII 0 Keyboard 0 Movement Mouse Keybinds 1 Fullscreen 1 Font 24/Smallcaps Map View 50x35 Zoom Use 0% Tactical HUD 1 Map Filters NONE Filters NONE Steam 1 RUN: a96d7fc9-60af-4e39-a108-5206ff6afacf